bitfinex/quotes_SOLUSD_20240622
["timestamp","ask_amount","ask_price","bid_price","bid_amount"]
[1719016514936,23.7242,134.17,134.12,7.4559]
[1719016515240,6.1315,134.18,134.1,18.6425]
[1719016515427,6.1315,134.18,134.13,7.4552]
[1719016515428,13.5842,134.18,134.13,7.4552]
[1719016516341,7.4527,134.18,134.13,7.4552]
[1719016517446,7.4532,134.17,134.12,7.4559]
[1719016519155,34.8999,134.2,134.13,7.4554]
[1719016519156,7.4528,134.18,134.13,7.4554]
[1719016522147,7.452,134.2,134.14,0.17]
[1719016522344,20.0,134.19,134.15,7.4542]
[1719016522539,20.0,134.19,134.16,7.4537]
[1719016523044,7.4512,134.21,134.16,7.4537]
[1719016524154,23.2811401,134.24,134.15,41.0853]
[1719016524379,20.0,134.23,134.16,0.34]
[1719016524653,7.4507,134.22,134.17,7.4531]
[1719016524856,7.4507,134.22,134.16,0.34]
[1719016524857,7.4507,134.22,134.18,7.4526]
[1719016525650,27.4501,134.23,134.18,7.4526]
[1719016525955,7.4513,134.21,134.16,7.6234]
[1719016526832,20.0,134.23,134.16,0.17]
[1719016526833,7.4505,134.22,134.16,0.17]
[1719016527146,20.0,134.23,134.19,7.4519]
[1719016527743,20.0,134.23,134.2,7.4514]
[1719016529856,20.0,134.23,134.17,7.4528]
[1719016530034,19.5031401,134.24,134.16,7.4537]
[1719016530234,7.4512,134.21,134.16,7.4537]
[1719016530549,7.4512,134.21,134.17,7.453]
[1719016530756,7.4506,134.22,134.17,7.453]
[1719016530934,7.4505,134.22,134.18,7.4525]
[1719016531344,7.4501,134.23,134.18,7.4525]
[1719016531550,20.0,134.22,134.18,7.4525]
[1719016532337,8.3292401,134.24,134.19,7.4519]
[1719016532533,20.0,134.23,134.19,7.4519]
[1719016533331,20.0,134.23,134.2,7.4514]
[1719016533537,0.8798401,134.24,134.22,7.4501]
[1719016534236,0.8798401,134.24,134.23,7.4498]
[1719016534729,0.8798401,134.24,134.22,7.4502]
[1719016536246,0.8798401,134.24,134.21,7.4507]
[1719016536645,0.8798401,134.24,134.22,0.17]
[1719016536843,0.8798401,134.24,134.23,7.4498]
[1719016542387,0.8798401,134.24,134.18,45.0852]
[1719016542548,0.8798401,134.24,134.23,7.4498]
[1719016545396,0.8798401,134.24,134.23,16.7898]
[1719016546791,0.8798401,134.24,134.21,7.4507]
[1719016547251,0.8798401,134.24,134.2,22.45]
[1719016547452,0.8798401,134.24,134.23,16.7898]
[1719016547966,0.8798401,134.24,134.23,7.4498]
[1719016551279,0.8798401,134.24,134.23,16.9598]
[1719016551455,0.8798401,134.24,134.23,17.1298]
[1719016552176,0.8798401,134.24,134.23,16.9598]
[1719016552650,0.8798401,134.24,134.23,7.6198]
[1719016553075,0.8798401,134.24,134.23,16.9598]
[1719016553281,0.8798401,134.24,134.23,17.1298]
[1719016556494,0.8798401,134.24,134.23,55.3297]
[1719016556786,0.8798401,134.24,134.23,61.972]
[1719016557980,0.8798401,134.24,134.23,7.4498]
[1719016558496,6.9517401,134.24,134.15,22.3922]
[1719016558784,0.8798401,134.24,134.15,22.3922]
[1719016558957,0.8798401,134.24,134.22,7.4501]
[1719016559160,0.8798401,134.24,134.22,7.4502]
[1719016559478,0.8798401,134.24,134.23,7.4498]
[1719016559661,0.8798401,134.24,134.23,16.7898]
[1719016560073,0.8798401,134.24,134.23,7.4498]
[1719016560266,0.8798401,134.24,134.23,39.5798]
[1719016560981,0.8798401,134.24,134.23,30.2398]
[1719016561154,0.8798401,134.24,134.23,39.5798]
[1719016561360,0.8798401,134.24,134.23,30.2398]
[1719016561580,0.8798401,134.24,134.23,7.7898]
[1719016561932,0.8798401,134.24,134.23,17.1298]
[1719016564266,0.8798401,134.24,134.19,74.6187]
[1719016564267,0.8798401,134.24,134.19,22.45]
[1719016564487,0.8798401,134.24,134.22,7.4504]
[1719016564875,0.8798401,134.24,134.18,35.1793]
[1719016565077,9.34,134.23,134.19,7.4516]
[1719016565701,0.8798401,134.24,134.2,7.4513]
[1719016565997,9.34,134.23,134.19,7.4519]
[1719016566372,9.34,134.23,134.2,7.4513]
[1719016567192,0.8798401,134.24,134.19,0.17]
[1719016567505,0.8798401,134.24,134.23,7.4498]
[1719016568171,0.8798401,134.24,134.22,7.4502]
[1719016569005,0.8798401,134.24,134.23,7.4498]
[1719016569311,0.8798401,134.24,134.23,39.5798]
[1719016569672,0.8798401,134.24,134.23,7.7898]
[1719016570001,0.8798401,134.24,134.23,17.1298]
[1719016570375,0.8798401,134.24,134.23,7.7898]
[1719016570701,0.8798401,134.24,134.23,39.5798]
[1719016570897,4.01e-05,134.24,134.23,76.8292]
[1719016571100,4.01e-05,134.24,134.23,67.4892]
[1719016571286,4.01e-05,134.24,134.23,7.6198]
[1719016571475,4.01e-05,134.24,134.2,7.4514]
[1719016571683,4.01e-05,134.24,134.23,7.4498]
[1719016572307,4.01e-05,134.24,134.22,7.4502]
[1719016579398,4.01e-05,134.24,134.21,7.4508]
[1719016580213,4.01e-05,134.24,134.2,0.17]
[1719016580810,4.01e-05,134.24,134.19,0.34]
[1719016581393,4.01e-05,134.24,134.2,7.4511]
[1719016582094,4.01e-05,134.24,134.15,18.6348]
[1719016582299,4.01e-05,134.24,134.15,7.4542]
[1719016582300,7.4517,134.2,134.15,7.4542]
[1719016582515,7.4521,134.19,134.14,7.4547]
[1719016582693,18.6277,134.21,134.1,18.6416]
[1719016582888,20.0,134.2,134.09,15.8143]
[1719016583291,20.0,134.2,134.1,22.45]
[1719016583512,7.4519,134.2,134.15,7.4543]
[1719016583789,20.0,134.19,134.15,7.4543]
[1719016584221,20.0,134.19,134.09,34.4582]
[1719016584512,20.0,134.19,134.08,34.2761]
[1719016584513,48.02,134.21,134.08,47.3514]
[1719016584716,34.5835,134.18,134.08,18.6453]
[1719016584893,20.0,134.17,134.08,18.6453]
[1719016585083,7.454,134.16,134.1,7.4566]
[1719016585298,20.0,134.15,134.1,7.4568]
[1719016585895,27.4544,134.15,134.1,7.4568]
[1719016586401,20.0,134.15,134.11,7.4563]
[1719016586929,20.0,134.15,134.1,7.4568]
[1719016587804,27.4543,134.15,134.1,7.4568]
[1719016589916,7.4549,134.14,134.1,7.4568]
[1719016590320,7.4549,134.14,134.09,7.4574]
[1719016591116,7.4549,134.14,134.08,0.17]
[1719016591418,6.5635,134.18,134.08,22.45]
[1719016591590,6.5635,134.18,134.09,7.6273]
[1719016591795,7.4567,134.11,134.06,7.4589]
[1719016592004,18.6369,134.15,134.03,28.02]
[1719016592210,15.3001,134.12,134.08,7.4581]
[1719016592423,15.3001,134.12,134.02,22.3514]
[1719016592597,7.4567,134.11,134.06,7.4589]
[1719016593628,21.3548,134.12,134.07,0.17]
[1719016593827,21.3548,134.12,134.08,7.4581]
[1719016595720,21.3548,134.16,134.09,0.17]
[1719016595937,21.3548,134.16,134.1,18.6427]
[1719016596224,21.3548,134.16,134.13,7.4553]
[1719016596607,21.3548,134.16,134.11,0.17]
[1719016596814,21.3548,134.19,134.14,7.4545]
[1719016597012,28.8071,134.19,134.14,7.4545]
[1719016597211,21.3548,134.19,134.15,7.454]
[1719016598097,28.8069,134.19,134.15,7.454]
[1719016598305,28.8069,134.19,134.14,7.4546]
[1719016599329,7.453,134.18,134.13,0.17]
[1719016599507,7.4534,134.17,134.13,0.17]
[1719016600204,7.4528,134.18,134.13,7.6254]
[1719016600912,28.8071,134.19,134.14,7.4547]
[1719016601826,7.4527,134.18,134.13,7.6251]
[1719016602026,20.0,134.17,134.04,22.2194]
[1719016602627,49.3748,134.19,134.04,22.2194]
[1719016602628,21.3548,134.19,134.09,28.02]
[1719016603012,28.8069,134.19,134.14,7.4548]
[1719016603223,7.4534,134.17,134.11,7.4563]
[1719016603607,7.4534,134.17,134.12,7.4559]
[1719016603810,20.0,134.16,134.1,7.4566]
[1719016604336,38.6349,134.16,134.06,22.45]
[1719016604637,20.0,134.16,134.09,7.4572]
[1719016604819,20.0,134.17,134.09,7.4572]
[1719016605212,7.4553,134.14,134.05,41.0984]
[1719016605719,7.4553,134.14,134.09,7.4575]
[1719016606319,7.4553,134.14,134.05,41.0984]
[1719016606320,42.2003,134.13,134.02,18.6526]
[1719016606505,7.4567,134.11,134.06,7.4593]
[1719016606831,20.0,134.1,134.06,7.4593]
[1719016607007,20.0,134.1,134.07,7.4587]
[1719016607409,27.4565,134.11,134.06,7.4591]
[1719016608139,7.4577,134.09,134.01,34.4951]
[1719016608339,7.4577,134.09,134.04,7.4604]
[1719016609013,7.4592,134.07,134.02,7.461]
[1719016609216,7.4579,134.09,134.04,7.4604]
[1719016609415,7.4572,134.1,134.05,7.4597]
[1719016609714,20.0,134.09,134.05,7.4597]
[1719016610234,20.0,134.09,134.01,15.8399]
[1719016610235,20.0,134.09,134.01,38.2899]
[1719016610437,20.0,134.1,134.07,7.4583]
[1719016610624,20.0,134.11,134.07,7.4583]
[1719016612012,27.4566,134.11,134.06,7.459]
[1719016612213,7.4585,134.08,134.02,0.34]
[1719016612529,20.0,134.11,134.03,7.4608]
[1719016612930,7.4585,134.08,134.03,7.4608]
[1719016613326,7.4585,134.08,134.04,7.4604]
[1719016613536,7.4584,134.08,134.03,7.4608]
[1719016614131,7.4584,134.08,134.04,7.4603]
[1719016614459,7.4583,134.08,134.02,0.17]
[1719016614637,7.4571,134.1,134.05,7.4594]
[1719016614836,27.4577,134.09,134.05,7.4594]
[1719016615040,27.4577,134.09,134.04,7.4602]
[1719016615541,20.0,134.09,134.02,18.8233]
[1719016615734,20.0,134.09,134.06,7.4593]
[1719016615924,27.4571,134.1,134.06,7.4593]
[1719016616125,27.4571,134.1,134.05,7.4596]
[1719016616639,27.4571,134.1,134.05,7.4595]
[1719016617322,22.0303,134.13,134.03,0.17]
[1719016617526,27.4562,134.12,134.07,7.4586]
[1719016618550,7.4565,134.11,134.06,7.459]
[1719016619647,20.0,134.12,134.09,7.4573]
[1719016619820,20.0,134.12,134.04,59.7514]
[1719016620021,22.0303,134.13,134.09,7.4573]
[1719016620230,29.4859,134.13,134.08,7.4579]
[1719016620521,29.4859,134.13,134.05,0.34]
[1719016620522,7.4574,134.1,134.05,0.34]
[1719016620747,7.4574,134.1,134.06,0.17]
[1719016621125,7.4574,134.1,134.05,7.4594]
[1719016621540,7.4568,134.11,134.06,7.4592]
[1719016621742,22.0303,134.13,134.08,7.4579]
[1719016622037,20.0,134.12,134.08,7.4579]
[1719016622242,20.0,134.12,134.07,7.4587]
[1719016623250,7.4573,134.1,134.05,7.4596]
[1719016623441,27.4578,134.09,134.01,18.6542]
[1719016624241,27.4578,134.09,134.04,7.4602]
[1719016625442,27.4578,134.09,134.05,7.4598]
[1719016625751,27.4578,134.09,134.01,18.6542]
[1719016625752,27.4578,134.09,134.04,7.4599]
[1719016626248,20.0,134.09,134.03,7.4609]
[1719016626450,7.4597,134.06,134.0,16.4349]
[1719016626628,7.459,134.07,134.02,7.4615]
[1719016628927,7.4584,134.08,134.03,7.4609]
[1719016629128,7.4579,134.09,134.04,7.4604]
[1719016629348,20.0,134.08,134.05,7.4596]
[1719016629940,20.0,134.09,134.06,7.4592]
[1719016630250,20.0,134.09,134.02,18.6528]
[1719016630251,20.0,134.09,134.05,7.4596]
[1719016631259,7.4568,134.11,134.03,18.6515]
[1719016631556,7.4566,134.11,134.07,7.4587]
[1719016631727,7.4562,134.12,134.07,7.4587]
[1719016631928,27.4566,134.11,134.07,7.4587]
[1719016632142,27.4566,134.11,134.06,7.459]
[1719016633459,20.0,134.11,134.07,7.4587]
[1719016634039,29.4859,134.13,134.04,22.79]
[1719016634355,29.4859,134.13,134.08,7.4579]
[1719016635054,22.0303,134.13,134.09,7.4576]
[1719016636439,29.4858,134.13,134.09,7.4576]
[1719016638563,29.4858,134.13,134.08,7.4579]
[1719016639163,21.8098,134.16,134.07,18.6458]
[1719016639466,29.2637,134.16,134.11,7.4563]
[1719016639756,21.8098,134.16,134.13,7.4552]
[1719016640071,15.3566,134.16,134.13,7.4552]
[1719016640266,7.453,134.18,134.13,7.4552]
[1719016640443,20.0,134.17,134.13,7.4552]
[1719016640848,7.453,134.18,134.13,7.4552]
[1719016641055,29.0863,134.19,134.14,7.4547]
[1719016641244,7.4527,134.18,134.13,7.4551]
[1719016642749,40.2649,134.19,134.08,25.0269]
[1719016642948,7.4543,134.15,134.1,7.4568]
[1719016643168,7.4543,134.15,134.11,7.4565]
[1719016643781,7.4539,134.16,134.11,7.4565]
[1719016643942,20.0,134.15,134.12,7.4559]
[1719016644139,20.0,134.15,134.13,7.4553]
[1719016644566,27.4537,134.16,134.12,7.4559]
[1719016644942,27.4537,134.16,134.11,7.4562]
[1719016645766,20.0,134.16,134.12,7.4559]
[1719016646067,20.0,134.16,134.15,7.4543]
[1719016646376,29.0862,134.19,134.14,7.4548]
[1719016646555,20.0,134.18,134.14,7.4548]
[1719016646946,20.0,134.18,134.15,7.4542]
[1719016647151,21.6341,134.19,134.15,7.4542]
[1719016647567,7.4511,134.21,134.16,7.4537]
[1719016647753,20.0,134.2,134.16,7.4537]
[1719016648369,27.4516,134.2,134.16,7.4537]
[1719016648878,27.4516,134.2,134.15,7.454]
[1719016649053,7.4521,134.19,134.15,7.454]
[1719016649865,27.4518,134.2,134.15,7.454]
[1719016650253,7.4522,134.19,134.14,7.6246]
[1719016650863,20.0,134.2,134.12,0.17]
[1719016651069,20.0,134.2,134.1,7.4569]
[1719016651070,7.4546,134.15,134.1,7.4569]
[1719016651369,7.4552,134.14,134.09,22.5253]
[1719016652069,7.4555,134.13,134.09,22.5253]
[1719016652274,7.4551,134.14,134.09,22.5253]
[1719016652655,7.4551,134.14,134.09,7.4574]
[1719016652962,7.4561,134.12,134.08,7.4581]
[1719016653269,7.4557,134.13,134.08,7.4581]
[1719016653773,7.4551,134.14,134.09,7.4576]
[1719016653972,20.0,134.13,134.09,7.4576]
[1719016654447,27.4555,134.13,134.09,7.4576]
[1719016654983,27.4555,134.13,134.08,7.458]
[1719016655561,6.3698,134.12,134.03,15.0679]
[1719016655758,18.6439,134.1,134.0,15.0679]
[1719016655962,20.0,134.09,134.0,15.0679]
[1719016656186,7.4584,134.08,134.03,7.4606]
[1719016656356,27.4579,134.09,134.04,7.4604]
[1719016658983,7.4582,134.08,134.04,7.4604]
[1719016659189,15.4816,134.07,133.98,18.6592]
[1719016659389,20.0,134.06,133.98,18.6592]
[1719016659867,7.4602,134.05,134.0,7.4623]
[1719016660068,20.0,134.04,134.0,7.4623]
[1719016661804,27.4604,134.04,134.0,7.4623]
[1719016661984,27.4604,134.04,133.99,7.463]
[1719016662170,7.4611,134.03,133.98,7.4635]
[1719016662756,20.0,134.02,133.93,59.7823]
[1719016662963,20.0,134.02,133.99,7.4631]
[1719016663167,20.0,134.02,133.98,7.4635]
[1719016663888,20.0,134.04,133.98,7.4635]
[1719016664084,7.4613,134.03,133.98,7.4635]
[1719016664385,20.0,134.02,133.98,7.4635]
[1719016664594,27.4616,134.02,133.98,7.4635]
[1719016665285,7.4623,134.01,133.93,46.6863]
[1719016665476,27.4631,134.0,133.95,7.4653]
[1719016665676,7.4631,134.0,133.95,7.4653]
[1719016665875,20.0,133.99,133.92,21.981]
[1719016666082,7.464,133.98,133.92,15.3301]
[1719016666395,27.4643,133.97,133.92,7.4667]
[1719016666573,7.4649,133.96,133.91,7.4675]
[1719016667078,20.0,133.95,133.91,7.4675]
[1719016667384,7.4663,133.94,133.9,0.8798]
[1719016667588,20.0,133.95,133.9,0.8798]
[1719016667787,20.0,133.95,133.93,7.4665]
[1719016667991,13.866,133.98,133.93,7.4662]
[1719016668187,27.4645,133.97,133.9,19.5493]
[1719016668371,27.4645,133.97,133.92,7.4668]
[1719016669084,7.465,133.96,133.91,7.4675]
[1719016669273,20.0,133.95,133.92,7.4669]
[1719016669477,20.0,133.97,133.93,7.4664]
[1719016669783,20.0,133.97,133.94,7.4658]
[1719016670992,20.0,133.97,133.93,7.4664]
[1719016672268,20.0,133.97,133.94,7.4659]
[1719016672874,20.0,133.97,133.93,7.4663]
[1719016673076,27.4644,133.97,133.92,7.4671]
[1719016673586,27.4644,133.97,133.91,7.4672]
[1719016673587,7.4652,133.96,133.91,7.4672]
[1719016673768,20.0,133.97,133.9,0.8798]
[1719016673969,27.4646,133.97,133.92,7.4669]
[1719016674194,7.4654,133.96,133.9,8.3475]
[1719016674390,20.0,133.95,133.91,7.4674]
[1719016674593,27.4656,133.95,133.9,8.3479]
[1719016674784,27.4656,133.95,133.9,0.8798]
[1719016674965,20.0,133.95,133.91,7.4676]
[1719016676696,20.0,133.95,133.92,7.467]
[1719016677096,36.149,133.95,133.9,0.8798]
[1719016677392,7.4672,133.92,133.9,0.8798]
[1719016677695,7.4668,133.93,133.9,0.8798]
[1719016677875,20.0,133.92,133.9,0.8798]
[1719016679103,27.4671,133.92,133.9,0.8798]
[1719016680971,27.4674,133.92,133.9,0.8798]
[1719016682021,20.0,133.92,133.9,0.8798]
[1719016682190,20.0,133.94,133.91,7.4674]
[1719016682398,16.149,133.95,133.92,7.467]
[1719016682579,16.149,133.95,133.93,7.4665]
[1719016682895,7.4647,133.97,133.92,7.4668]
[1719016683092,7.4656,133.95,133.9,8.3478]
[1719016683599,20.0,133.96,133.94,7.4658]
[1719016683798,20.0,133.97,133.9,0.8798]
[1719016683972,7.4649,133.96,133.9,0.8798]
[1719016684302,20.0,133.95,133.9,0.8798]
[1719016684898,20.0,133.95,133.91,7.4675]
[1719016685602,20.0,133.95,133.92,7.467]
[1719016685779,27.4655,133.95,133.91,7.4675]
[1719016685981,20.0,133.95,133.91,7.4675]
[1719016688594,20.0,133.95,133.92,7.4668]
[1719016688895,27.4651,133.96,133.91,7.4674]
[1719016689405,20.0,133.96,133.92,7.4671]
[1719016690796,20.0,133.96,133.91,7.4675]
[1719016690999,20.0,133.97,133.91,7.4675]
[1719016691196,20.0,133.97,133.9,0.8798]
[1719016691197,7.4667,133.93,133.9,0.8798]
[1719016691396,7.4661,133.94,133.9,0.8798]
[1719016691891,7.4666,133.93,133.9,0.8798]
[1719016692100,27.4672,133.92,133.9,0.8798]
[1719016692406,20.0,133.92,133.9,0.8798]
[1719016693400,7.4677,133.91,133.9,0.8798]
[1719016693586,27.4677,133.91,133.9,0.8798]
[1719016697611,20.0,133.91,133.9,0.8798]
[1719016697816,23.5407,133.93,133.9,0.8798]
[1719016698115,20.0,133.92,133.9,0.8798]
[1719016698413,27.4672,133.92,133.9,0.8798]
[1719016698807,20.0,133.92,133.9,0.8798]
[1719016698994,20.0,133.93,133.9,0.8798]
[1719016699803,27.4667,133.93,133.9,0.8798]
[1719016700406,20.0,133.93,133.9,0.8798]
[1719016700799,16.074,133.96,133.91,7.4673]
[1719016700800,20.0,133.95,133.91,7.4673]
[1719016701320,20.0,133.95,133.9,0.8798]
[1719016701609,7.4677,133.91,133.9,0.8798]
[1719016701822,27.4677,133.91,133.9,0.8798]
[1719016705400,20.0,133.91,133.9,0.8798]
[1719016705601,7.4668,133.93,133.9,0.8798]
[1719016705907,20.0,133.92,133.9,0.8798]
[1719016707436,7.4662,133.94,133.9,0.8798]
[1719016707600,20.0,133.93,133.9,0.8798]
[1719016707801,27.4666,133.93,133.9,0.8798]
[1719016708124,20.0,133.93,133.9,0.8798]
[1719016708910,7.4656,133.95,133.91,7.4676]
[1719016709115,20.0,133.94,133.9,0.8798]
[1719016709299,7.4666,133.93,133.9,0.8798]
[1719016709503,7.4677,133.91,133.9,0.8798]
[1719016710528,7.4674,133.92,133.9,0.8798]
[1719016712936,7.4668,133.93,133.9,0.8798]
[1719016713117,7.4671,133.92,133.9,0.8798]
[1719016713429,20.0,133.94,133.9,0.8798]
[1719016713632,20.0,133.95,133.91,7.4676]
[1719016714207,27.4656,133.95,133.9,8.3478]
[1719016714412,7.466,133.94,133.9,0.8798]
[1719016714604,20.0,133.93,133.9,0.8798]
[1719016715504,20.0,133.95,133.9,0.8798]
[1719016715701,0.17,133.94,133.9,0.8798]
[1719016715902,7.4677,133.91,133.9,0.8798]
[1719016716133,27.4677,133.91,133.9,0.8798]
[1719016720506,20.0,133.91,133.9,0.8798]
[1719016721225,7.4663,133.94,133.9,0.8798]
[1719016721430,20.0,133.93,133.9,0.8798]
[1719016722906,27.4666,133.93,133.9,0.8798]
[1719016723234,20.0,133.93,133.9,8.3476]
[1719016723410,7.4656,133.95,133.9,8.3476]
[1719016723611,20.0,133.94,133.9,8.3476]
[1719016723814,27.4661,133.94,133.9,0.8798]
[1719016725336,20.0,133.94,133.9,8.3479]
[1719016726244,27.466,133.94,133.9,8.3479]
[1719016727246,27.466,133.94,133.9,0.8798]
[1719016727740,20.0,133.94,133.9,0.8798]
[1719016728042,325.7398,133.98,133.9,0.8798]
[1719016728043,7.4677,133.91,133.9,0.8798]
[1719016728215,27.4677,133.91,133.9,0.8798]
[1719016731414,20.0,133.91,133.9,0.8798]
[1719016731714,7.4663,133.94,133.9,0.8798]
[1719016732047,7.4656,133.95,133.9,8.348]
[1719016733919,24.8837,133.97,133.9,8.348]
[1719016734119,13.6864,133.97,133.92,7.4666]
[1719016734323,27.4649,133.96,133.91,7.4675]
[1719016734922,7.4655,133.95,133.9,23.6539]
[1719016735130,27.466,133.94,133.9,23.6539]
[1719016735449,7.466,133.94,133.9,23.6539]
[1719016736546,7.4666,133.93,133.9,0.8798]
[1719016737319,18.8351,133.94,133.9,0.8798]
[1719016737526,7.4674,133.92,133.9,0.8798]
[1719016739225,7.4668,133.93,133.9,0.8798]
[1719016739544,7.4671,133.92,133.9,0.8798]
[1719016739741,7.4668,133.93,133.9,0.8798]
[1719016740745,7.4662,133.94,133.9,8.348]
[1719016740921,20.0,133.93,133.9,8.348]
[1719016741123,20.0,133.93,133.9,0.8798]
[1719016741124,27.4667,133.93,133.9,0.8798]
[1719016741449,20.0,133.93,133.9,8.3479]
[1719016741655,27.4651,133.96,133.91,7.4676]
[1719016741829,27.4651,133.96,133.9,0.8798]
[1719016741830,20.0,133.96,133.9,0.8798]
[1719016742231,20.0,133.96,133.93,7.4664]
[1719016742443,7.464,133.98,133.93,7.4664]
[1719016742444,20.0,133.97,133.93,7.4664]
[1719016742825,7.4628,134.0,133.95,7.4654]
[1719016743027,27.4632,133.99,133.95,7.4654]
[1719016743338,27.4632,133.99,133.94,15.6973]
[1719016743535,27.4632,133.99,133.94,23.163]
[1719016744870,16.4022,134.03,133.95,0.17]
[1719016745038,27.4619,134.02,133.97,7.464]
[1719016745942,27.4619,134.02,133.95,0.34]
[1719016745943,20.0,134.02,133.95,0.34]
[1719016746147,20.0,134.04,133.95,0.34]
[1719016746348,7.4618,134.02,133.97,7.4642]
[1719016746551,20.0,134.01,133.97,7.4642]
[1719016746962,20.0,134.01,133.98,7.4637]
[1719016747180,20.0,134.01,133.97,7.4641]
[1719016747470,7.4632,133.99,133.94,23.1631]
[1719016747665,7.4633,133.99,133.94,23.163]
[1719016747835,20.0,134.01,133.94,15.6973]
[1719016748035,27.4624,134.01,133.96,7.4648]
[1719016748451,27.4624,134.01,133.97,7.4643]
[1719016748775,27.4624,134.01,133.96,7.4647]
[1719016748937,7.4627,134.0,133.95,7.4652]
[1719016749136,20.0,134.01,133.94,15.6973]
[1719016749364,7.4641,133.98,133.94,23.1632]
[1719016749592,7.4634,133.99,133.94,23.1632]
[1719016750163,7.4638,133.98,133.94,15.6973]
[1719016750864,7.4638,133.98,133.93,14.0474]
[1719016750865,7.4652,133.96,133.91,7.4673]
[1719016751064,7.4652,133.96,133.92,7.4671]
[1719016751363,7.4652,133.96,133.91,7.4674]
[1719016751541,18.6592,133.99,133.92,7.467]
[1719016751863,7.4646,133.97,133.92,7.467]
[1719016752068,20.0,133.96,133.92,7.467]
[1719016752657,27.4649,133.96,133.92,7.467]
[1719016752872,7.4668,133.93,133.9,15.9182]
[1719016753068,20.0,133.96,133.9,15.9182]
[1719016753279,20.0,133.99,133.9,15.9182]
[1719016753454,20.0,133.99,133.9,34.5884]
[1719016753655,27.4635,133.99,133.94,7.4657]
[1719016753855,20.0,133.99,133.95,7.4653]
[1719016754452,20.0,133.99,133.97,7.464]
[1719016754755,27.4621,134.01,133.97,7.464]
[1719016755074,27.4621,134.01,133.96,7.4646]
[1719016755773,20.0,134.01,133.93,18.6661]
[1719016755972,7.4633,133.99,133.94,7.8056]
[1719016756374,7.4633,133.99,133.94,7.4656]
[1719016756558,7.4628,134.0,133.95,7.4652]
[1719016756756,20.0,133.99,133.95,7.4652]
[1719016758270,27.4633,133.99,133.91,18.6689]
[1719016758467,20.0,133.99,133.95,7.4654]
[1719016759270,20.0,133.99,133.92,22.79]
[1719016759451,20.0,134.0,133.97,7.4643]
[1719016759657,20.0,134.0,133.96,7.4646]
[1719016760071,20.0,134.0,133.97,7.4643]
[1719016760277,20.0,134.0,133.96,7.4646]
[1719016760576,20.0,134.0,133.97,7.4642]
[1719016763176,7.4621,134.01,133.97,7.4638]
[1719016763468,20.0,134.0,133.96,7.4646]
[1719016764057,20.0,134.0,133.94,0.17]
[1719016764261,20.0,134.03,133.93,0.17]
[1719016764561,7.4623,134.01,133.96,7.4648]
[1719016764761,20.0,134.0,133.96,7.4648]
[1719016765884,20.0,134.0,133.9,43.9382]
[1719016766086,20.0,134.0,133.9,15.9182]
[1719016766087,7.4659,133.95,133.9,15.9182]
[1719016766275,7.4659,133.95,133.9,23.3861]
[1719016766599,18.6605,133.98,133.9,23.3863]
[1719016766767,20.0,133.97,133.9,23.3863]
[1719016766968,7.4656,133.95,133.9,23.3863]
[1719016767785,7.4651,133.96,133.91,7.4676]